bitfinex-derivatives/quotes_ETHF0:USTF0_20241022
["timestamp","ask_amount","ask_price","bid_price","bid_amount"]
[1729559162110,0.37931,2637.3,2637.2,2.96]
[1729559162307,1.5364,2637.7,2637.2,7.82706217]
[1729559162510,0.3793,2637.4,2637.2,4.86706217]
[1729559162723,3.2078,2637.9,2637.3,3.2078]
[1729559163018,3.2078,2637.9,2637.8,2.96]
[1729559163614,0.37921,2638.0,2637.8,6.252]
[1729559163919,0.37922,2637.9,2637.8,6.252]
[1729559164301,1.6624,2638.2,2637.8,6.252]
[1729559164499,3.2078,2638.4,2638.1,2.96]
[1729559164707,0.37915,2638.4,2638.3,2.96]
[1729559165118,0.37917,2638.2,2638.1,2.96]
[1729559165414,1.5634,2638.6,2638.1,2.96]
[1729559165613,0.37917,2638.2,2638.1,2.96]
[1729559166111,0.37917,2638.2,2638.1,6.7504]
[1729559166307,0.37917,2638.3,2638.1,11.73660226]
[1729559166501,0.37917,2638.3,2638.2,2.96]
[1729559167011,0.37917,2638.3,2638.2,43.76]
[1729559170409,0.37917,2638.3,2638.2,47.5504]
[1729559170815,0.37917,2638.3,2638.2,2.96]
[1729559172319,3.2078,2639.0,2638.2,14.94053488]
[1729559172516,3.58686,2639.0,2638.9,2.96]
[1729559172818,3.58686,2639.0,2638.3,3.3252]
[1729559172819,3.2078,2639.0,2638.7,2.96]
[1729559173019,0.37909,2638.8,2638.7,2.96]
[1729559173412,0.37908,2638.9,2638.7,11.70993351]
[1729559173608,0.37908,2638.9,2638.8,4.6195]
[1729559173814,1.5572,2639.2,2638.8,4.6195]
[1729559174126,3.2078,2639.6,2639.0,6.29905]
[1729559174323,0.37897,2639.6,2639.5,2.96]
[1729559176020,0.37897,2639.6,2639.5,6.7488]
[1729559177521,1.5572,2639.9,2639.5,6.7488]
[1729559177720,3.2078,2640.0,2639.5,6.7488]
[1729559177721,3.2078,2640.3,2639.8,2.96]
[1729559177915,0.37893,2639.9,2639.8,2.96]
[1729559178316,3.2078,2640.3,2639.8,2.96]
[1729559178617,0.37887,2640.3,2640.2,2.96]
[1729559182821,6.995,2640.3,2639.8,3.2078]
[1729559183020,2.52538,2640.4,2638.7,1.67076095]
[1729559183021,3.2078,2640.0,2639.6,2.96]
[1729559183247,0.37896,2639.7,2639.6,2.96]
[1729559183525,0.37894,2639.8,2639.7,4.99144137]
[1729559183824,0.37894,2639.8,2639.7,2.96]
[1729559184921,0.37897,2639.6,2639.5,2.96]
[1729559185920,0.47734692,2640.8,2639.5,6.7488]
[1729559186115,3.2078,2640.3,2639.8,3.2078]
[1729559186319,3.58668,2640.3,2640.2,2.96]
[1729559191229,0.37886,2640.4,2640.2,2.96]
[1729559191553,0.37885,2640.5,2640.3,2.96]
[1729559191729,0.37885,2640.5,2640.4,2.96]
[1729559191730,0.37884,2640.5,2640.4,2.96]
[1729559193029,3.01800909,2640.6,2640.4,2.96]
[1729559193236,0.37884,2640.5,2640.4,2.96]
[1729559194830,4.06551,2641.1,2640.4,2.96]
[1729559194831,1.5796,2641.1,2640.4,11.64318862]
[1729559195031,0.37882,2640.7,2640.5,3.1197]
[1729559195223,0.37882,2640.7,2640.6,2.96]
[1729559195428,0.37881,2640.8,2640.6,51.90363955]
[1729559195742,0.37881,2640.8,2640.7,2.96]
[1729559197830,4.16601,2640.8,2640.7,2.96]
[1729559198428,0.37881,2640.8,2640.7,2.96]
[1729559198928,4.16601,2640.8,2640.7,2.96]
[1729559199234,0.37881,2640.8,2640.7,2.96]
[1729559199438,3.58658,2641.0,2640.7,2.96]
[1729559199631,3.58658,2641.0,2640.9,2.96]
[1729559200750,3.58658,2641.0,2640.7,2.96]
[1729559200751,3.2078,2641.0,2640.7,2.96]
[1729559200933,3.58657,2641.0,2640.9,2.96]
[1729559201233,0.37877,2641.0,2640.9,2.96]
[1729559202322,3.7864,2641.0,2640.7,2.96]
[1729559202527,0.37881,2640.8,2640.7,2.96]
[1729559202729,0.37879,2640.9,2640.7,2.96]
[1729559205134,0.37879,2640.9,2640.7,3.33881]
[1729559205832,0.37879,2640.9,2640.7,2.96]
[1729559206034,0.3788,2640.8,2640.7,2.96]
[1729559208034,0.3788,2640.8,2640.7,6.1678]
[1729559208233,4.7334,2641.3,2640.7,7.6638]
[1729559208437,0.3788,2640.9,2640.7,1.87481]
[1729559208734,0.37879,2640.9,2640.8,2.96]
[1729559216737,3.7864,2640.9,2640.6,4.5428]
[1729559217042,0.37887,2640.3,2640.2,2.96]
[1729559217230,3.2078,2640.7,2640.2,2.96]
[1729559217436,0.37884,2640.5,2640.4,2.96]
[1729559217835,3.2078,2640.7,2640.4,2.96]
[1729559218233,3.2078,2640.7,2640.6,2.96]
[1729559218438,0.37882,2640.7,2640.6,2.96]
[1729559222552,3.2078,2641.1,2640.6,2.96]
[1729559222743,0.37881,2640.8,2640.7,3.1554]
[1729559222964,0.37881,2640.8,2640.7,6.1154]
[1729559223248,0.37877,2641.0,2640.7,18.68715914]
[1729559223453,3.58657,2641.1,2641.0,2.96]
[1729559223843,0.37877,2641.1,2641.0,2.96]
[1729559224043,0.37875,2641.2,2641.0,3.33876]
[1729559224243,3.2078,2641.5,2641.1,4.5415]
[1729559224453,0.6297045,2641.4,2641.1,1.5815]
[1729559224648,1.0084145,2641.4,2641.3,2.96]
[1729559224849,0.37871,2641.4,2641.3,2.96]
[1729559225047,0.37871,2641.4,2641.3,4.5821]
[1729559227754,0.37871,2641.4,2640.9,2.96]
[1729559227755,0.37877,2641.0,2640.9,2.96]
[1729559228553,0.37877,2641.0,2640.7,1.78205227]
[1729559228554,3.2078,2641.2,2640.7,2.96]
[1729559228757,3.2078,2640.9,2640.4,4.5636]
[1729559229070,0.37884,2640.5,2640.4,4.5636]
[1729559229252,0.37886,2640.4,2640.3,3.2078]
[1729559231057,3.2078,2640.9,2640.3,6.995]
[1729559231254,0.3788,2640.8,2640.7,2.96]
[1729559231653,3.2078,2640.9,2640.3,4.7748]
[1729559231654,0.37883,2640.6,2640.5,2.96]
[1729559231854,3.2078,2640.9,2640.3,6.1678]
[1729559232054,0.37886,2640.4,2640.3,6.1678]
[1729559232254,0.37886,2640.4,2640.3,2.96]
[1729559232870,4.16606,2640.4,2640.3,2.96]
[1729559233166,4.16606,2640.4,2640.1,40.8]
[1729559233167,0.37889,2640.2,2640.1,43.76]
[1729559235457,3.2078,2640.6,2640.1,47.548]
[1729559235662,3.58663,2640.6,2640.5,2.96]
[1729559236256,3.2078,2640.6,2640.5,2.96]
[1729559236463,1.5839,2640.9,2640.5,2.96]
[1729559236464,0.3788,2640.9,2640.6,0.37882]
[1729559236655,0.37879,2640.9,2640.8,2.96]
[1729559237060,0.94678,2641.5,2640.8,2.96]
[1729559237260,0.37874,2641.2,2641.1,2.96]
[1729559237561,4.7912,2641.6,2640.9,2.96]
[1729559237562,0.37877,2641.0,2640.9,2.96]
[1729559238264,3.2078,2641.3,2640.7,4.5252]
[1729559238457,0.3788,2640.8,2640.7,4.5252]
[1729559239460,3.2078,2641.3,2640.7,13.14544881]
[1729559239764,3.58653,2641.3,2641.2,2.96]
[1729559239962,3.58653,2641.3,2640.9,2.96]
[1729559239963,3.2078,2641.3,2640.9,2.96]
[1729559240165,3.58653,2641.3,2641.2,40.8]
[1729559240387,0.37873,2641.3,2641.2,40.8]
[1729559240687,4.16513,2641.3,2641.2,40.8]
[1729559240874,4.79611727,2641.3,2641.2,40.8]
[1729559241270,0.37877,2641.0,2640.9,2.96]
[1729559241863,0.37877,2641.0,2640.9,43.76]
[1729559242162,3.2078,2641.3,2640.7,4.5252]
[1729559242368,0.37882,2640.7,2640.6,1.5574]
[1729559242668,2.96,2641.3,2640.6,48.90403]
[1729559242669,0.37881,2640.8,2640.6,48.90403]
[1729559242870,0.37881,2640.8,2640.7,2.96]
[1729559244268,3.2078,2641.3,2640.7,7.83212531]
[1729559244470,0.3788,2640.8,2640.7,7.83212531]
[1729559245361,0.3788,2640.8,2640.7,2.96]
[1729559255264,3.2078,2641.3,2640.7,2.96]
[1729559255265,0.3788,2640.9,2640.7,2.96]
[1729559255468,3.2078,2641.3,2640.7,2.96]
[1729559255668,0.3788,2640.8,2640.7,2.96]
[1729559256073,3.2078,2641.3,2640.7,9.955]
[1729559256277,0.37878,2641.0,2640.8,0.37879]
[1729559256575,0.37878,2641.0,2640.9,1.5082]
[1729559257770,0.37878,2641.0,2640.9,4.4682]
[1729559258668,5.73795,2641.6,2640.9,9.35496719]
[1729559258873,5.73795,2641.6,2641.0,4.6907]
[1729559258874,0.37876,2641.1,2641.0,4.6907]
[1729559259076,0.37876,2641.1,2641.0,7.6507]
[1729559259668,5.73795,2641.6,2641.0,8.2293]
[1729559259865,0.37874,2641.2,2641.1,1.4444]
[1729559260879,0.37874,2641.2,2641.1,4.6522]
[1729559261375,0.37872,2641.4,2641.2,0.37874]
[1729559261671,4.7912,2641.6,2641.5,2.96]
[1729559261672,3.58649,2641.6,2641.5,2.96]
[1729559261976,0.37869,2641.6,2641.5,2.96]
[1729559262177,1.4339,2642.0,2641.5,2.96]
[1729559262484,0.37864,2641.9,2641.8,2.96]
[1729559262872,0.37864,2641.9,2641.8,43.76]
[1729559263672,0.37864,2641.9,2641.8,40.8]
[1729559264675,0.3787,2641.5,2641.4,6.1678]
[1729559265378,0.3787,2641.5,2641.4,43.76]
[1729559265878,3.2078,2641.9,2641.4,43.76]
[1729559266067,0.37866,2641.8,2641.7,2.96]
[1729559267493,3.2078,2641.9,2641.5,2.96]
[1729559267774,0.37869,2641.6,2641.5,2.96]
[1729559267980,4.15443,2641.9,2641.3,6.1678]
[1729559268178,0.37871,2641.4,2641.3,2.96]
[1729559269180,0.37877,2641.0,2640.9,46.9678]
[1729559269776,0.37877,2641.0,2640.9,44.0078]
[1729559270071,0.37877,2641.0,2640.9,3.2078]
[1729559270670,4.16517,2641.0,2640.9,3.2078]
[1729559270871,0.37877,2641.0,2640.9,3.2078]
[1729559271080,0.37877,2641.0,2640.9,46.9678]
[1729559272074,0.37877,2641.0,2640.9,44.0078]
[1729559280286,0.37877,2641.0,2640.9,3.2078]
[1729559280584,0.37891,2640.1,2640.0,2.96]
[1729559280774,0.37891,2640.1,2640.0,46.8002]
[1729559280980,0.37889,2640.2,2640.0,51.76924687]
[1729559281176,0.3789,2640.1,2640.0,51.76924687]
[1729559281376,0.3789,2640.1,2640.0,46.8002]
[1729559281582,3.2078,2640.5,2640.0,46.8002]
[1729559281783,3.2078,2640.5,2640.3,2.96]
[1729559281979,0.37885,2640.5,2640.3,2.96]
[1729559282180,0.37882,2640.7,2640.4,5.39649765]
[1729559282387,3.2078,2640.9,2640.6,2.96]
[1729559282588,0.37881,2640.8,2640.7,1.5508]
[1729559283186,3.2078,2640.9,2640.7,4.5108]
[1729559283385,3.58659,2640.9,2640.7,4.5108]
[1729559283592,3.2078,2640.9,2640.8,1.4616]
[1729559284281,0.37879,2640.9,2640.8,1.4616]
[1729559285280,0.37879,2640.9,2640.8,42.2616]
[1729559285879,0.37878,2641.0,2640.8,42.2616]
[1729559286081,0.37878,2641.0,2640.9,2.96]
[1729559287886,3.2078,2641.2,2640.8,42.2616]
[1729559288103,3.58659,2640.9,2640.8,42.2616]
[1729559288386,0.37879,2640.9,2640.8,42.2616]
[1729559293898,3.2078,2641.2,2640.8,42.2616]
[1729559294190,3.58656,2641.1,2641.0,2.96]
[1729559294396,0.37879,2640.9,2640.8,45.2216]
[1729559298192,0.37879,2640.9,2640.8,42.2616]
[1729559298389,0.37879,2640.9,2640.8,43.6216]
[1729559302001,0.37879,2640.9,2640.8,42.16]
[1729559303030,0.37879,2640.9,2640.3,1.85892346]
[1729559303031,0.37886,2640.4,2640.3,0.98519954]
[1729559303205,0.37886,2640.4,2640.0,2.47829954]
[1729559303206,1.36,2640.4,2640.0,2.47829954]
[1729559303399,0.37886,2640.4,2640.3,1.36]
[1729559303707,0.37889,2640.2,2640.1,42.16]
[1729559304011,0.37889,2640.2,2639.8,1.4482]
[1729559304012,0.37893,2639.9,2639.8,1.4482]
[1729559304200,0.37893,2639.9,2639.8,4.2678]
[1729559304404,0.37893,2639.9,2639.8,45.0678]
[1729559304991,0.37893,2639.9,2639.8,43.6196]
[1729559306301,0.37893,2639.9,2639.8,42.2596]
[1729559308006,1.5261,2640.1,2639.8,42.2596]
[1729559308203,3.2078,2640.2,2639.8,42.2596]
[1729559308400,3.2078,2640.2,2640.0,2.96]
[1729559308401,0.37891,2640.1,2640.0,2.96]
[1729559308604,0.37893,2639.9,2639.8,45.2196]
[1729559310011,3.2078,2640.2,2639.8,45.2196]
[1729559310198,0.37893,2639.9,2639.8,42.2596]
[1729559310401,0.37896,2639.7,2639.6,4.4087]
[1729559311098,0.37896,2639.7,2639.6,2.96]
[1729559311297,0.37897,2639.6,2639.5,4.7414]
[1729559311501,0.37897,2639.6,2639.5,3.2078]
[1729559311715,0.37902,2639.3,2639.2,4.7414]
[1729559312406,0.37896,2639.7,2639.2,4.7414]
[1729559312598,4.7786,2639.8,2639.4,2.96]
[1729559312599,0.37898,2639.6,2639.4,2.96]
[1729559312799,0.37895,2639.8,2639.5,1.81679]
[1729559313106,0.37893,2639.9,2639.6,3.33897]
[1729559313308,0.37893,2640.0,2639.8,2.96]
[1729559313509,3.2078,2640.1,2639.9,1.4204]
[1729559314004,3.58671,2640.1,2639.9,1.4204]
[1729559314199,0.37892,2640.0,2639.9,1.4204]
[1729559314601,3.58671,2640.1,2639.9,4.3804]
[1729559314803,3.2078,2640.1,2639.9,4.3804]
[1729559315004,3.58671,2640.1,2639.9,4.3804]
[1729559315413,0.37892,2640.0,2639.9,4.3804]
[1729559316313,0.37892,2640.0,2639.9,1.4204]
[1729559317108,0.37897,2639.6,2639.5,1.4378]
[1729559317308,3.2078,2639.8,2639.4,1.5704]
[1729559317510,0.37899,2639.5,2639.4,1.5704]
[1729559317712,0.37899,2639.5,2639.4,42.3704]
[1729559318217,3.2078,2639.8,2639.4,42.3704]
[1729559318402,0.37896,2639.7,2639.4,50.67177937]
[1729559318612,1.4477,2639.9,2639.4,50.29278937]
[1729559318807,0.37899,2639.5,2639.4,45.3304]
[1729559319312,0.37899,2639.5,2639.4,42.3704]
[1729559320906,0.37898,2639.6,2639.4,49.1192]
[1729559321108,0.37899,2639.5,2639.4,45.3304]
[1729559321307,0.37898,2639.6,2639.4,45.3304]
[1729559321513,0.37899,2639.5,2639.4,45.3304]
[1729559323620,0.37899,2639.5,2639.4,42.3704]
[1729559324314,0.37899,2639.5,2639.4,45.3304]
[1729559324615,3.2078,2640.1,2639.4,54.03134077]
[1729559324811,0.37892,2640.0,2639.5,0.37897]
[1729559325116,0.37894,2639.9,2639.6,5.21634969]
[1729559325312,0.37893,2639.9,2639.7,4.3943]
[1729559325507,3.2078,2640.1,2639.7,4.3943]
[1729559325711,0.37894,2639.8,2639.7,4.3943]
[1729559326313,3.2078,2640.1,2639.7,4.3943]
[1729559326314,0.37894,2639.9,2639.7,4.3943]
[1729559326615,3.2078,2640.1,2639.7,4.3943]
[1729559327016,0.37893,2639.9,2639.7,4.3943]
[1729559327613,3.2078,2640.1,2639.7,6.24286]
[1729559327815,3.2078,2640.1,2639.8,4.81563037]
[1729559328029,3.58671,2640.1,2639.8,5.19457037]
[1729559328212,0.37889,2640.2,2640.0,2.96]
[1729559328410,0.37888,2640.3,2640.0,3.33891]
[1729559329316,3.2078,2640.6,2640.0,2.96]
[1729559329514,0.37889,2640.2,2640.0,2.96]
[1729559329714,0.3789,2640.1,2640.0,2.96]
[1729559330713,6.1678,2640.6,2639.9,1.4603]
[1729559330918,0.37892,2640.0,2639.9,1.4603]
[1729559333616,1.5243,2640.2,2639.9,1.4603]
[1729559333831,3.2078,2640.3,2639.9,1.4603]
[1729559334221,0.37891,2640.1,2639.9,1.4603]
[1729559334617,0.37892,2640.0,2639.9,1.4603]
[1729559336418,3.2078,2640.3,2639.9,1.4603]
[1729559336617,0.37891,2640.1,2639.9,1.4603]
[1729559336832,0.37892,2640.0,2639.9,1.4603]
[1729559337717,3.2078,2640.3,2639.9,1.4603]
[1729559337925,0.37891,2640.1,2639.9,1.4603]
[1729559338125,3.58668,2640.3,2640.0,8.33824197]
[1729559339916,3.58668,2640.3,2640.0,7.95933197]
[1729559340120,3.58668,2640.3,2640.1,0.3789]
[1729559340317,3.58668,2640.3,2640.2,1.5035]
[1729559340718,3.2078,2640.3,2640.2,5.2907]
[1729559340926,3.58667,2640.3,2640.2,5.2907]
[1729559341126,0.3789,2640.1,2640.0,2.96]
[1729559341327,0.37892,2640.0,2639.9,1.4603]
[1729559342043,0.37892,2640.0,2639.8,4.4635]
[1729559342044,0.37896,2639.7,2639.6,2.96]
[1729559342235,3.2078,2640.0,2639.4,46.7024]
[1729559342441,2.84656,2640.1,2639.4,46.7024]
[1729559342442,0.37899,2639.5,2639.4,46.7024]
[1729559343036,3.2078,2639.7,2639.4,46.7024]
[1729559343326,1.4276,2640.0,2639.6,2.96]
[1729559343681,0.37892,2640.0,2639.9,2.96]
[1729559344132,3.2078,2640.2,2639.9,2.96]
[1729559344334,0.3789,2640.1,2640.0,1.4555]
[1729559344533,0.3789,2640.1,2640.0,2.9384]
[1729559344832,0.3789,2640.1,2639.5,0.98964689]
[1729559344833,0.37897,2639.6,2639.5,0.98964689]
[1729559345028,0.37903,2639.2,2639.1,2.9384]
[1729559345427,0.37903,2639.2,2639.1,1.4829]
[1729559347349,0.37913,2638.5,2638.4,0.91964689]
[1729559347647,0.37913,2638.5,2637.1,1.48447033]
[1729559347648,16.0429434,2638.5,2637.1,1.48447033]
[1729559347842,2.96,2637.5,2637.1,40.8]
[1729559348044,0.37932,2637.2,2637.1,40.8]
[1729559348452,4.17132,2637.2,2637.1,40.8]
[1729559349247,0.37936,2636.9,2636.8,1.4402]
[1729559349451,6.7528,2636.9,2636.6,3.2078]
[1729559349643,3.2078,2636.7,2635.6,1.48447033]
[1729559349844,0.37956,2635.6,2635.2,3.2078]
[1729559350045,0.37954,2635.7,2635.3,4.9628949]
[1729559350250,6.8578,2635.9,2635.2,3.2078]
[1729559350452,0.37959,2635.3,2635.2,3.2078]
[1729559350650,3.2078,2635.6,2634.6,7.04789113]
[1729559351046,0.37959,2635.3,2634.7,4.94309096]
[1729559351357,0.3796,2635.3,2634.7,4.94309096]
[1729559352350,3.2078,2635.6,2634.7,4.94309096]
[1729559352748,0.3796,2635.3,2634.7,4.94309096]
[1729559354652,0.37959,2635.3,2634.8,3.2078]
[1729559354948,0.37959,2635.3,2634.9,4.92608114]
[1729559355254,3.2078,2635.4,2634.9,4.92608114]
[1729559355753,0.37961,2635.2,2634.9,4.92608114]
[1729559356052,3.2078,2635.4,2634.9,4.92608114]
[1729559356053,0.3796,2635.3,2634.9,4.92608114]
[1729559356453,0.37965,2634.9,2634.4,6.8578]
[1729559356655,3.2078,2635.4,2634.4,6.8578]
[1729559356656,0.37964,2635.0,2634.5,40.8]
[1729559356848,3.2078,2635.4,2634.7,4.84661893]
[1729559357043,0.37966,2634.9,2634.6,5.00545244]
[1729559357254,3.2078,2635.1,2634.5,40.8]
[1729559357549,0.37962,2635.1,2634.7,3.2078]
[1729559359953,3.2078,2635.4,2634.7,3.2078]
[1729559360150,0.37963,2635.1,2634.7,3.2078]
[1729559361254,3.2078,2635.4,2634.7,3.2078]
[1729559361457,0.37963,2635.1,2634.7,3.2078]
[1729559361649,3.2078,2635.4,2634.7,3.2078]
[1729559361846,0.37964,2635.0,2634.7,3.2078]
[1729559362054,3.2078,2635.4,2634.7,3.2078]
[1729559362252,0.37963,2635.1,2634.7,3.2078]
[1729559364060,3.2078,2635.4,2635.0,3.65]
[1729559364265,0.37949,2636.0,2635.4,0.37958]
[1729559364556,0.3795,2635.9,2635.4,0.37958]
[1729559364758,3.2078,2636.1,2635.3,6.8578]
[1729559364958,0.37953,2635.8,2635.5,40.8]
[1729559365558,3.7944,2635.7,2635.5,40.8]
[1729559365759,0.37955,2635.6,2635.5,40.8]
[1729559371867,4.17395,2635.6,2635.5,40.8]
[1729559372056,4.17395,2635.6,2634.8,4.867]
[1729559372057,0.37964,2635.0,2634.8,4.867]
[1729559372259,0.37966,2634.9,2634.6,3.2078]
[1729559372459,0.37966,2634.9,2634.7,45.70748038]
[1729559372662,0.37966,2634.9,2634.7,40.8]
[1729559372868,3.2078,2635.4,2634.7,40.8]
[1729559373064,2.96,2635.3,2634.7,40.8]
[1729559373380,0.37966,2634.8,2634.7,40.8]
[1729559374359,0.37966,2634.8,2634.6,3.2078]
[1729559374554,0.37968,2634.7,2634.6,3.2078]
[1729559374765,2.96,2635.3,2634.6,3.2078]
[1729559375065,0.94899,2635.3,2634.6,44.0078]
[1729559375265,0.37968,2634.7,2634.6,44.0078]
[1729559375970,0.37967,2634.8,2634.6,44.0078]
[1729559376156,0.37964,2635.0,2634.6,46.9678]
[1729559376356,0.37964,2635.0,2634.6,47.34749]
[1729559376760,0.37964,2635.0,2634.6,46.9678]
[1729559376971,0.37964,2635.0,2634.7,0.37967]
[1729559377177,0.37964,2635.0,2634.7,0.37968]
[1729559377656,3.2078,2635.1,2634.6,46.9678]
[1729559377657,3.58743,2635.1,2634.6,46.9678]
[1729559377857,0.37963,2635.1,2634.6,46.9678]
[1729559378060,0.37963,2635.1,2634.7,5.223804]
[1729559378263,4.6836,2635.6,2634.9,2.96]
[1729559378460,0.3796,2635.3,2634.9,6.1678]
[1729559378868,0.94881,2635.8,2634.9,6.54744]
[1729559379169,0.37963,2635.1,2634.9,6.1678]
[1729559379576,0.37963,2635.0,2634.9,3.2078]
[1729559380265,3.2078,2635.6,2634.9,3.2078]
[1729559380266,0.37963,2635.1,2634.9,3.2078]
[1729559380462,0.37961,2635.2,2634.9,3.2078]
[1729559380666,0.37956,2635.5,2634.9,3.2078]
[1729559380965,0.37961,2635.2,2634.9,3.2078]
[1729559381371,0.37961,2635.2,2634.9,3.58745]
[1729559381565,3.2078,2635.6,2634.9,3.2078]
[1729559381866,0.3796,2635.3,2635.0,0.37963]
[1729559382074,0.3796,2635.3,2634.9,3.2078]
[1729559382273,0.3796,2635.3,2634.9,3.58744]
[1729559382471,0.37961,2635.2,2634.9,3.58744]
[1729559384185,3.2078,2635.6,2635.0,2.96]
[1729559384370,3.2078,2635.6,2635.4,2.96]
[1729559384371,3.58736,2635.6,2635.4,2.96]
[1729559384572,0.37956,2635.6,2635.4,2.96]
[1729559384982,0.37956,2635.6,2635.3,0.37959]
[1729559385483,0.37957,2635.5,2635.2,1.4915]
[1729559385981,0.37957,2635.5,2635.3,4.8319924]
[1729559386171,0.37958,2635.4,2635.3,4.8319924]
[1729559386481,0.37959,2635.3,2635.2,1.4915]
[1729559386680,3.90884,2635.8,2635.0,1.4952]
[1729559386681,0.37962,2635.1,2635.0,1.4952]
[1729559387682,0.37962,2635.2,2635.0,1.4952]
[1729559388384,0.37963,2635.0,2634.8,3.2078]
[1729559388771,0.94888,2635.6,2634.9,5.00832521]
[1729559389177,0.37962,2635.2,2634.9,5.00832521]
[1729559389779,0.37963,2635.1,2634.9,5.00832521]
[1729559390175,0.94891,2635.5,2634.7,4.345]
[1729559390386,0.94895,2635.4,2634.7,5.82947033]
[1729559390576,0.37965,2634.9,2634.7,5.82947033]
[1729559391279,4.15675,2635.4,2634.8,1.35968124]
[1729559391483,0.37963,2635.0,2634.9,2.84007385]
[1729559392275,1.4622,2635.5,2634.9,6.55908022]
[1729559392483,0.37959,2635.3,2635.2,1.48361287]
[1729559392682,0.37959,2635.3,2635.2,2.84329411]
[1729559392683,4.17399,2635.3,2635.2,2.84329411]
[1729559393182,0.37959,2635.3,2635.2,2.84329411]
[1729559393490,0.37959,2635.3,2635.2,6.56598541]
[1729559394385,0.37959,2635.3,2635.2,4.08554332]
[1729559395005,4.17399,2635.3,2635.2,4.08554332]
[1729559396000,4.17399,2635.3,2635.2,8.4566974]
[1729559396308,4.17399,2635.3,2635.2,4.08554332]
[1729559398590,4.17399,2635.3,2635.2,4.09788988]
[1729559399192,4.17399,2635.3,2635.2,6.58384389]
[1729559399785,0.37959,2635.3,2635.2,6.58384389]
[1729559399991,4.17399,2635.3,2635.2,6.58384389]
[1729559400406,4.17399,2635.3,2635.2,4.09788988]
[1729559400594,4.17399,2635.3,2635.2,6.58384389]
[1729559401391,9.9622,2635.3,2635.1,3.97765476]
[1729559401591,0.37962,2635.1,2634.7,1.98880236]
[1729559401792,3.2078,2634.9,2634.6,1.98880236]
[1729559401998,3.2078,2634.9,2634.5,1.98880236]
[1729559402194,3.2078,2634.9,2634.4,2.48595401]
[1729559402195,1.524,2634.8,2634.4,1.98880236]
[1729559402394,0.37971,2634.5,2634.4,1.98880236]
[1729559402807,1.524,2634.8,2634.3,1.98880236]
[1729559402808,0.37972,2634.4,2634.3,1.98880236]
[1729559403309,0.37974,2634.3,2634.2,3.2078]
[1729559404398,3.796,2634.3,2633.8,3.2078]
[1729559404697,0.37979,2633.9,2633.8,3.2078]
[1729559405904,0.37977,2634.1,2633.8,3.2078]
[1729559406205,0.37972,2634.5,2634.1,0.37975]
[1729559406396,0.37974,2634.3,2634.1,2.96]
[1729559406592,0.37974,2634.3,2634.0,0.37977]
[1729559406800,0.37976,2634.2,2633.9,3.33979]
[1729559407313,3.2078,2634.6,2634.1,2.96]
[1729559407602,0.3797,2634.6,2634.2,3.58754]
[1729559407803,3.2078,2635.1,2634.3,2.96]
[1729559408007,3.2078,2635.1,2634.6,2.96]
[1729559408208,3.2078,2635.1,2634.9,0.37964]
[1729559408407,0.37959,2635.4,2635.0,3.33962]
[1729559408601,0.3796,2635.3,2635.0,3.33962]
[1729559408801,0.37961,2635.2,2634.9,3.28023]
[1729559409099,0.3796,2635.3,2634.9,2.9006]
[1729559409309,0.37961,2635.2,2634.9,3.28024]
[1729559409607,3.58736,2635.6,2635.2,0.3796]
[1729559409918,9.88400247,2635.9,2635.5,0.37955]
[1729559409919,3.58731,2635.9,2635.5,0.37955]
[1729559410103,3.58731,2635.9,2635.6,1.5207]
[1729559410299,3.2078,2635.9,2635.6,1.90024]
[1729559410502,3.58731,2635.9,2635.6,1.90024]
[1729559410711,3.58731,2635.9,2635.6,1.5207]
[1729559410908,0.37953,2635.8,2635.6,1.5207]
[1729559411104,0.37952,2635.8,2635.6,1.5207]
[1729559413410,3.58731,2635.9,2635.6,1.5207]
[1729559413710,0.37948,2636.1,2635.7,8.85611781]
[1729559414102,0.3795,2636.0,2635.7,8.47658781]
[1729559414299,0.37952,2635.8,2635.6,3.068]
[1729559415004,0.37953,2635.7,2635.6,3.068]
[1729559415805,0.37948,2636.1,2635.6,3.068]
[1729559416107,3.2078,2636.2,2635.6,3.068]
[1729559416702,0.37953,2635.8,2635.6,3.068]
[1729559417110,3.7944,2635.8,2635.5,0.069]
[1729559417305,4.5987,2636.1,2635.5,0.069]
[1729559417306,0.37955,2635.6,2635.5,0.069]
[1729559417908,6.0891,2636.1,2635.5,0.069]
[1729559417909,3.2078,2636.2,2635.8,0.37952]
[1729559418215,3.2078,2636.2,2635.6,4.3555]
[1729559418409,0.37948,2636.1,2635.8,0.37952]
[1729559418623,0.37948,2636.1,2635.6,4.3555]
[1729559418624,0.37948,2636.1,2635.7,4.95532465]
[1729559418815,3.2078,2636.2,2635.6,4.73505]
[1729559419011,0.37951,2635.9,2635.6,4.3555]
[1729559419212,3.2078,2636.2,2635.6,4.3555]
[1729559419412,3.58727,2636.2,2635.6,4.3555]
[1729559419608,3.2078,2636.2,2635.7,0.37952]
[1729559419811,3.2078,2636.2,2635.9,0.3795]
[1729559420120,0.37948,2636.1,2635.8,3.2078]
[1729559420512,3.2078,2636.2,2635.8,3.2078]
[1729559420513,0.3795,2635.9,2635.8,3.2078]